fUSD/lending_fUSD_20240101
["ID","MTS","AMOUNT","RATE_DAILY","PERIOD"]
[309774737,1704109886710,-500.0,0.00040821,2]
[309774738,1704109886720,-1110.04,0.00040821,2]
[309774739,1704109886732,-928.23,0.00040821,2]
[309774740,1704109886741,-500.0,0.00040821,2]
[309774741,1704109886751,-2601.12,0.00040821,2]
[309774742,1704109886761,-533.05,0.00040821,2]
[309774743,1704109886770,-719.76,0.00040821,2]
[309774744,1704109886779,-813.41,0.00040821,2]
[309774745,1704109886789,-424.72315995,0.00040821,2]
[309774746,1704109886798,-500.0,0.00040821,2]
[309774747,1704109886933,-591.79,0.00040821,2]
[309774748,1704109886944,-743.24,0.00040821,2]
[309774749,1704109886954,-1336.86,0.00040821,2]
[309774750,1704109886963,-1003.36,0.00040821,2]
[309774751,1704109886973,-1027.98,0.00040821,2]
[309774752,1704109886982,-2255.73,0.00040821,2]
[309774753,1704109886991,-1374.7,0.00040821,2]
[309774754,1704109887000,-525.75861164,0.00040821,2]
[309774755,1704109887009,-504.58,0.00040821,2]
[309774756,1704109887018,-3035.78,0.00040821,5]
[309774757,1704109887027,-500.0,0.00040821,2]
[309774758,1704109887036,-500.0,0.00040821,2]
[309774759,1704109887046,-500.0,0.00040821,2]
[309774760,1704109887055,-500.0,0.00040821,2]
[309774761,1704109887064,-3369.73,0.00040821,2]
[309774762,1704109887073,-3994.99,0.00040821,2]
[309774763,1704109887082,-680.31,0.00040821,2]
[309774764,1704109887092,-598.43,0.00040821,2]
[309774765,1704109887102,-520.83,0.00040821,2]
[309774766,1704109887114,-785.72,0.00040821,2]
[309774767,1704109887124,-500.43,0.00040821,2]
[309774768,1704109887136,-3723.51,0.00040821,5]
[309774769,1704109887146,-603.16,0.00040821,2]
[309774770,1704109887156,-4833.67,0.00040821,2]
[309774771,1704109887166,-1308.58,0.00040821,2]
[309774772,1704109887175,-606.58,0.00040821,2]
[309774773,1704109887185,-669.06,0.00040821,2]
[309774774,1704109887194,-551.88,0.00040821,2]
[309774775,1704109887204,-300.0,0.00040877,2]
[309774776,1704109887213,-222.22222,0.00040898,8]
[309774777,1704109887223,-1293.9847346,0.000409,3]
[309774778,1704109887233,-1998.82,0.00040905,2]
[309774779,1704109887243,-500.0,0.00040923,2]
[309774780,1704109887253,-400.0,0.0004097,3]
[309774781,1704109887263,-212.0,0.0004097,2]
[309774782,1704109887273,-209.0,0.0004097,2]
[309774783,1704109887283,-1409.69239265,0.0004097,30]
[309774784,1704109887295,-3945.44496308,0.0004097,30]
[309774785,1704109887304,-346.40300523,0.0004097,30]
[309774786,1704109887314,-187.25424294,0.0004097,30]
[309774787,1704109887323,-3469.72068928,0.0004097,30]
[309774788,1704109887332,-2153.26346012,0.0004097,30]
[309774789,1704109887342,-338.39781832,0.0004097,30]
[309774790,1704109887352,-500.0,0.00040987,31]
[309774791,1704109887361,-2729.0,0.0004099,2]
[309774792,1704109887371,-222.22222,0.00040998,8]
[309774793,1704109887381,-100000.0,0.00041,11]
[309774794,1704109887391,-2479.17732001,0.00041,4]
[309774795,1704109887401,-235.00244792,0.00041,2]
[309774796,1704109887412,-802.1928262,0.00041,2]
[309774797,1704109887421,-800.0,0.00041,2]
[309774798,1704109887432,-12837.86672063,0.00041,7]
[309774799,1704109887442,-300.0,0.00041,42]
[309774800,1704109887452,-299.99787117,0.00041,4]
[309774801,1704109887462,-250.0,0.00041,30]
[309774802,1704109887471,-500.0,0.00041,30]
[309774803,1704109887481,-164.39528727,0.00041,7]
[309774804,1704109887491,-157.51,0.00041,4]
[309774805,1704109887501,-157.51,0.00041,4]
[309774806,1704109887511,-500.93,0.00041034,2]
[309774807,1704109887521,-937.19,0.00041034,2]
[309774808,1704109887531,-799.52,0.00041034,2]
[309774809,1704109887540,-937.19,0.00041034,2]
[309774810,1704109887550,-399.76,0.00041034,2]
[309774811,1704109887560,-937.19,0.00041034,2]
[309774812,1704109887570,-843.8,0.00041034,2]
[309774813,1704109887579,-153.822114,0.00041077,2]
[309774814,1704109887589,-354.416999,0.00041077,2]
[309774815,1704109887598,-1000.0,0.00041095,2]
[309774816,1704109887608,-211.52004998,0.00041095,2]
[309774817,1704109887618,-500.0,0.00041095,20]
[309774818,1704109887627,-500.0,0.00041095,20]
[309774819,1704109887636,-500.0,0.00041095,20]
[309774820,1704109887645,-500.0,0.00041095,20]
[309774821,1704109887655,-592.97389351,0.00041095,20]
[309774822,1704109887664,-1000.0,0.00041095,2]
[309774823,1704109887674,-1000.0,0.00041095,2]
[309774824,1704109887684,-249.28809215,0.00041095,2]
[309774825,1704109887694,-500.0,0.00041095,2]
[309774826,1704109887703,-247.64,0.00041095,2]
[309774827,1704109887713,-500.0,0.00041095,2]
[309774828,1704109887723,-1000.0,0.00041095,7]
[309774829,1704109887732,-1000.0,0.00041095,7]
[309774830,1704109887742,-1000.0,0.00041095,7]
[309774831,1704109887751,-1000.0,0.00041095,7]
[309774832,1704109887761,-1000.0,0.00041095,7]
[309774833,1704109887770,-1000.0,0.00041095,7]
[309774834,1704109887780,-580.93911407,0.00041095,7]
[309774835,1704109887789,-720.31,0.00041095,2]
[309774836,1704109887798,-566.28,0.00041095,2]
[309774837,1704109887808,-550.12,0.00041095,2]
[309774838,1704109887818,-500.0,0.00041095,2]
[309774839,1704109887827,-764.22,0.00041095,2]
[309774840,1704109887837,-777.48,0.00041095,2]
[309774841,1704109887847,-500.0,0.00041095,2]
[309774842,1704109887856,-500.0,0.00041095,30]
[309774843,1704109887866,-531.93814494,0.00041095,30]
[309774844,1704109887875,-500.0,0.00041095,2]
[309774845,1704109887885,-500.0,0.00041095,2]
[309774846,1704109887894,-1110.04,0.00041095,2]
[309774847,1704109887903,-5527.5,0.00041095,2]
[309774848,1704109887912,-5527.5,0.00041095,2]
[309774849,1704109887922,-5527.5,0.00041095,2]
[309774850,1704109887931,-5527.5,0.00041095,2]
[309774851,1704109887940,-5527.5,0.00041095,2]
[309774852,1704109887950,-5527.5,0.00041095,2]
[309774853,1704109887959,-5527.5,0.00041095,2]
[309774854,1704109887969,-5527.5,0.00041095,2]
[309774855,1704109887978,-5527.5,0.00041095,2]
[309774856,1704109887988,-928.23,0.00041095,2]
[309774857,1704109887997,-5527.5,0.00041095,2]
[309774858,1704109888007,-5527.5,0.00041095,2]
[309774859,1704109888016,-5527.5,0.00041095,2]
[309774860,1704109888026,-5527.5,0.00041095,2]
[309774861,1704109888036,-5527.5,0.00041095,2]
[309774862,1704109888046,-5527.5,0.00041095,2]
[309774863,1704109888055,-5527.5,0.00041095,2]
[309774864,1704109888065,-5527.5,0.00041095,2]
[309774865,1704109888075,-5527.5,0.00041095,2]
[309774866,1704109888086,-5527.5,0.00041095,2]
[309774867,1704109888097,-5527.5,0.00041095,2]
[309774868,1704109888108,-5527.5,0.00041095,2]
[309774869,1704109888118,-5527.5,0.00041095,2]
[309774870,1704109888129,-5527.5,0.00041095,2]
[309774871,1704109888139,-5527.63032232,0.00041095,2]
[309774872,1704109888149,-466.57390881,0.00041095,2]
[309774873,1704109888158,-2601.12,0.00041095,2]
[309774874,1704109888167,-500.0,0.00041095,10]
[309774875,1704109888176,-500.0,0.00041095,10]
[309774876,1704109888187,-308.88587046,0.00041095,10]
[309774877,1704109888196,-587.82530903,0.00041095,2]
[309774878,1704109888205,-1516.29595764,0.00041095,10]
[309774879,1704109888214,-533.05,0.00041095,2]
[309774880,1704109888224,-719.76,0.00041095,2]
[309774881,1704109888233,-813.41,0.00041095,2]
[309774882,1704109888243,-500.0,0.00041095,2]
[309774883,1704109888253,-591.79,0.00041095,2]
[309774884,1704109888263,-187.5,0.00041095,2]
[309774885,1704109888273,-375.0,0.00041095,2]
[309774886,1704109888283,-562.5,0.00041095,2]
[309774887,1704109888293,-750.0,0.00041095,2]
[309774888,1704109888303,-937.5,0.00041095,2]
[309774889,1704109888312,-1125.0,0.00041095,2]
[309774890,1704109888323,-1312.5,0.00041095,2]
[309774891,1704109888332,-743.24,0.00041095,2]
[309774892,1704109888342,-1500.0,0.00041095,2]
[309774893,1704109888351,-1687.5,0.00041095,2]
[309774894,1704109888361,-1875.0,0.00041095,2]
[309774895,1704109888370,-2062.5,0.00041095,2]
[309774896,1704109888380,-2250.0,0.00041095,2]
[309774897,1704109888389,-2437.5,0.00041095,2]
[309774898,1704109888399,-179.01682535,0.00041095,2]
[309774899,1704109888409,-1336.86,0.00041095,2]
[309774900,1704109888419,-500.0,0.00041095,2]
[309774901,1704109888428,-1003.36,0.00041095,2]
[309774902,1704109888438,-1769.1,0.00041095,10]
[309774903,1704109888447,-1769.1,0.00041095,10]
[309774904,1704109888457,-1027.98,0.00041095,2]
[309774905,1704109888467,-1769.1,0.00041095,10]
[309774906,1704109888477,-1769.1,0.00041095,10]
[309774907,1704109888487,-1769.1,0.00041095,10]
[309774908,1704109888497,-1769.1,0.00041095,10]
[309774909,1704109888507,-2255.73,0.00041095,2]
[309774910,1704109888516,-1769.1,0.00041095,10]
[309774911,1704109888527,-1769.1,0.00041095,10]
[309774912,1704109888537,-1769.1,0.00041095,10]
[309774913,1704109888546,-1769.1,0.00041095,10]
[309774914,1704109888557,-1769.1,0.00041095,10]
[309774915,1704109888567,-1769.1,0.00041095,10]
[309774916,1704109888577,-1769.1,0.00041095,10]
[309774917,1704109888586,-1769.1,0.00041095,10]
[309774918,1704109888596,-1769.1,0.00041095,10]
[309774919,1704109888606,-1769.1,0.00041095,10]
[309774920,1704109888615,-1769.1,0.00041095,10]
[309774921,1704109888625,-1769.1,0.00041095,10]
[309774922,1704109888634,-1769.1,0.00041095,10]
[309774923,1704109888644,-1769.1,0.00041095,10]
[309774924,1704109888654,-1769.1,0.00041095,10]
[309774925,1704109888663,-1374.7,0.00041095,2]
[309774926,1704109888673,-504.58,0.00041095,2]
[309774927,1704109888683,-3035.78,0.00041095,5]
[309774928,1704109888692,-500.0,0.00041095,2]
[309774929,1704109888702,-272.04977668,0.00041095,2]
[309774930,1704109888712,-500.0,0.00041095,2]
[309774931,1704109888722,-554.21913771,0.00041095,2]
[309774932,1704109888731,-3369.73,0.00041095,2]
[309774933,1704109888741,-3994.99,0.00041095,2]
[309774934,1704109888751,-680.31,0.00041095,2]
[309774935,1704109888761,-598.43,0.00041095,2]
[309774936,1704109888771,-520.83,0.00041095,2]
[309774937,1704109888781,-785.72,0.00041095,2]
[309774938,1704109888791,-500.43,0.00041095,2]
[309774939,1704109888801,-261.73511936,0.00041095,2]
[309774940,1704109888811,-720.5025,0.00041095,7]
[309774941,1704109888821,-1441.005,0.00041095,7]
[309774942,1704109888831,-2161.5075,0.00041095,7]
[309774943,1704109888840,-2882.01,0.00041095,7]
[309774944,1704109888850,-3602.5125,0.00041095,7]
[309774945,1704109888859,-4323.015,0.00041095,7]
[309774946,1704109888869,-5043.5175,0.00041095,7]
[309774947,1704109888879,-5764.02,0.00041095,7]
[309774948,1704109888889,-3723.51,0.00041095,5]
[309774949,1704109888899,-6484.5225,0.00041095,7]
[309774950,1704109888909,-7205.025,0.00041095,7]
[309774951,1704109888918,-7925.5275,0.00041095,7]
[309774952,1704109888928,-8646.03,0.00041095,7]
[309774953,1704109888938,-9366.5325,0.00041095,7]
[309774954,1704109888947,-3602.62963006,0.00041095,7]
[309774955,1704109888957,-603.16,0.00041095,2]
[309774956,1704109888968,-4833.67,0.00041095,2]
[309774957,1704109888977,-588.0,0.00041095,2]
[309774958,1704109888987,-588.0,0.00041095,2]
[309774959,1704109888997,-588.0,0.00041095,2]
[309774960,1704109889006,-588.0,0.00041095,2]
[309774961,1704109889016,-588.0,0.00041095,2]
[309774962,1704109889026,-588.0,0.00041095,2]
[309774963,1704109889036,-588.0,0.00041095,2]
[309774964,1704109889045,-588.0,0.00041095,2]
[309774965,1704109889056,-588.0,0.00041095,2]
[309774966,1704109889066,-543.37043331,0.00041095,2]
[309774967,1704109889076,-1308.58,0.00041095,2]
[309774968,1704109889086,-606.58,0.00041095,2]
[309774969,1704109889095,-669.06,0.00041095,2]
[309774970,1704109889105,-551.88,0.00041095,2]
[309774971,1704109889114,-180.0,0.00041096,2]
[309774972,1704109889124,-8137.46,0.00041096,2]
[309774973,1704109889136,-222.22222,0.00041098,8]
[309774974,1704109889146,-155.09,0.000411,7]
[309774975,1704109889157,-8000.0,0.000411,5]
[309774976,1704109889167,-406.5,0.00041137,2]
[309774977,1704109889177,-309.62,0.00041145,2]
[309774978,1704109889187,-500.0,0.0004115,2]
[309774979,1704109889197,-222.22222,0.00041198,8]
[309774980,1704109889207,-500.0,0.00041205,2]
[309774981,1704109889217,-150.0,0.00041208,120]
[309774982,1704109889228,-155.9,0.00041223,2]
[309774983,1704109889238,-500.0,0.0004126,2]
[309774984,1704109889247,-222.22222,0.00041298,8]
[309774985,1704109889258,-17389.0,0.000413,5]
[309774986,1704109889268,-500.0,0.00041315,2]
[309774987,1704109889278,-279.45,0.00041316,2]
[309774988,1704109889287,-4952.598253,0.00041361,30]
[309774989,1704109889296,-163.720073,0.00041361,30]
[309774990,1704109889305,-177.821546,0.00041361,30]
[309774991,1704109889314,-1393.537639,0.00041361,30]
[309774992,1704109889324,-201.452676,0.00041361,30]
[309774993,1704109889333,-177.676756,0.00041361,30]
[309774994,1704109889342,-1700.316283,0.00041361,30]
[309774995,1704109889352,-304.415413,0.00041361,30]
[309774996,1704109889361,-156.023992,0.00041361,30]
[309774997,1704109889371,-169.885899,0.00041361,30]
[309774998,1704109889380,-309.830366,0.00041361,30]
[309774999,1704109889390,-165.552737,0.00041361,30]
[309775000,1704109889399,-215.618321,0.00041361,30]
[309775001,1704109889408,-180.013857,0.00041361,30]
[309775002,1704109889418,-172.011264,0.00041361,30]
[309775003,1704109889428,-2097.750221,0.00041361,30]
[309775004,1704109889437,-2407.580588,0.00041361,30]
[309775005,1704109889446,-2390.292475,0.00041361,30]
[309775006,1704109889456,-183.017763,0.00041361,30]
[309775007,1704109889465,-2407.580587,0.00041361,30]
[309775008,1704109889475,-1216.708069,0.00041361,30]
[309775009,1704109889485,-183.017763,0.00041361,30]
[309775010,1704109889495,-489.5,0.00041369,2]
[309775011,1704109889505,-500.0,0.00041369,2]
[309775012,1704109889514,-720.31,0.00041369,2]
[309775013,1704109889524,-566.28,0.00041369,2]
[309775014,1704109889533,-550.12,0.00041369,2]
[309775015,1704109889544,-570.294261,0.00041369,2]
[309775016,1704109889554,-764.22,0.00041369,2]
[309775017,1704109889564,-777.48,0.00041369,2]
[309775018,1704109889574,-500.0,0.00041369,2]
[309775019,1704109889583,-307.10738652,0.00041369,2]
[309775020,1704109889593,-500.0,0.00041369,2]
[309775021,1704109889603,-1110.04,0.00041369,2]
[309775022,1704109889613,-928.23,0.00041369,2]
[309775023,1704109889622,-2601.12,0.00041369,2]
[309775024,1704109889632,-533.05,0.00041369,2]
[309775025,1704109889641,-719.76,0.00041369,2]
[309775026,1704109889653,-813.41,0.00041369,2]
[309775027,1704109889662,-593.68345578,0.00041369,2]
[309775028,1704109889671,-591.79,0.00041369,2]
[309775029,1704109889681,-743.24,0.00041369,2]
[309775030,1704109889691,-1336.86,0.00041369,2]
[309775031,1704109889701,-500.0,0.00041369,2]
[309775032,1704109889710,-1003.36,0.00041369,2]
[309775033,1704109889719,-1027.98,0.00041369,2]
[309775034,1704109889729,-2255.73,0.00041369,2]
[309775035,1704109889738,-1769.1,0.00041369,10]
[309775036,1704109889747,-1374.7,0.00041369,2]
[309775037,1704109889756,-504.58,0.00041369,2]
[309775038,1704109889765,-3035.78,0.00041369,5]
[309775039,1704109889775,-525.34,0.00041369,2]
[309775040,1704109889784,-500.0,0.00041369,2]
[309775041,1704109889794,-3369.73,0.00041369,2]
[309775042,1704109889803,-3994.99,0.00041369,2]
[309775043,1704109889812,-680.31,0.00041369,2]
[309775044,1704109889822,-598.43,0.00041369,2]
[309775045,1704109889832,-520.83,0.00041369,2]
[309775046,1704109889842,-785.72,0.00041369,2]
[309775047,1704109889851,-500.43,0.00041369,2]
[309775048,1704109889861,-3723.51,0.00041369,5]
[309775049,1704109889871,-603.16,0.00041369,2]
[309775050,1704109890012,-4833.67,0.00041369,2]
[309775051,1704109890023,-1308.58,0.00041369,2]
[309775052,1704109890033,-606.58,0.00041369,2]
[309775053,1704109890042,-669.06,0.00041369,2]
[309775054,1704109890052,-551.88,0.00041369,2]
[309775055,1704109890062,-222.22222,0.00041398,8]
[309775056,1704109890073,-500.0,0.00041424,2]
[309775057,1704109890082,-500.0,0.00041434,14]
[309775058,1704109890093,-500.0,0.00041479,2]
[309775059,1704109890106,-222.22222,0.00041498,8]
[309775060,1704109890116,-250.0,0.000415,2]
[309775061,1704109890126,-165.57543181,0.000415,90]
[309775062,1704109890135,-1582.251319,0.000415,2]
[309775063,1704109890147,-2000.0,0.000415,2]
[309775064,1704109890157,-262.96323272,0.00041522,4]
[309775065,1704109890167,-500.0,0.00041534,2]
[309775066,1704109890177,-5000.0,0.00041547,21]
[309775067,1704109890187,-157.41,0.0004157,2]
[309775068,1704109890198,-500.0,0.00041589,2]
[309775069,1704109890207,-222.22222,0.00041598,8]
[309775070,1704109890217,-2717.410954,0.0004161,30]
[309775071,1704109890227,-1259.831733,0.0004161,30]
[309775072,1704109890240,-183.017763,0.0004161,30]
[309775073,1704109890250,-500.0,0.00041643,2]
[309775074,1704109890260,-720.31,0.00041643,2]
[309775075,1704109890269,-566.28,0.00041643,2]
[309775076,1704109890279,-550.12,0.00041643,2]
[309775077,1704109890289,-764.22,0.00041643,2]
[309775078,1704109890300,-777.48,0.00041643,2]
[309775079,1704109890312,-500.0,0.00041643,2]
[309775080,1704109890323,-1110.04,0.00041643,2]
[309775081,1704109890333,-928.23,0.00041643,2]
[309775082,1704109890344,-2601.12,0.00041643,2]
[309775083,1704109890354,-533.05,0.00041643,2]
[309775084,1704109890364,-719.76,0.00041643,2]
[309775085,1704109890374,-813.41,0.00041643,2]
[309775086,1704109890384,-591.79,0.00041643,2]
[309775087,1704109890393,-743.24,0.00041643,2]
[309775088,1704109890405,-1336.86,0.00041643,2]
[309775089,1704109890415,-500.0,0.00041643,2]
[309775090,1704109890426,-1003.36,0.00041643,2]
[309775091,1704109890436,-1027.98,0.00041643,2]
[309775092,1704109890446,-2255.73,0.00041643,2]
[309775093,1704109890456,-1769.1,0.00041643,10]
[309775094,1704109890466,-1374.7,0.00041643,2]
[309775095,1704109890476,-504.58,0.00041643,2]
[309775096,1704109890486,-3035.78,0.00041643,5]
[309775097,1704109890496,-500.0,0.00041643,2]
[309775098,1704109890506,-3369.73,0.00041643,2]
[309775099,1704109890516,-3994.99,0.00041643,2]
[309775100,1704109890525,-680.31,0.00041643,2]
[309775101,1704109890535,-598.43,0.00041643,2]
[309775102,1704109890544,-520.83,0.00041643,2]
[309775103,1704109890554,-785.72,0.00041643,2]
[309775104,1704109890564,-500.43,0.00041643,2]
[309775105,1704109890575,-3723.51,0.00041643,5]
[309775106,1704109890585,-603.16,0.00041643,2]
[309775107,1704109890595,-4833.67,0.00041643,2]
[309775108,1704109890605,-1308.58,0.00041643,2]
[309775109,1704109890616,-606.58,0.00041643,2]
[309775110,1704109890625,-669.06,0.00041643,2]
[309775111,1704109890635,-551.88,0.00041643,2]
[309775112,1704109890645,-1000.0,0.00041652,15]
[309775113,1704109890655,-562173.92,0.0004169,7]
[309775114,1704109890665,-222.22222,0.00041698,8]
[309775115,1704109890675,-500.0,0.00041698,2]
[309775116,1704109890684,-250.0,0.0004175,30]
[309775117,1704109890694,-500.0,0.00041753,2]
[309775118,1704109890704,-854.054332,0.0004176,5]
[309775119,1704109890714,-2100.0,0.00041777,2]
[309775120,1704109890724,-500.0,0.0004178,5]
[309775121,1704109890734,-222.22222,0.00041798,8]
[309775122,1704109890744,-1000.0,0.000418,30]
[309775123,1704109890754,-500.0,0.000418,5]
[309775124,1704109890765,-500.0,0.00041808,2]
[309775125,1704109890775,-500.0,0.0004182,5]
[309775126,1704109890785,-500.0,0.0004184,5]
[309775127,1704109890796,-502.82,0.00041856,2]
[309775128,1704109890806,-319.93,0.00041856,2]
[309775129,1704109890816,-520.11,0.00041856,2]
[309775130,1704109890826,-416.59,0.00041856,2]
[309775131,1704109890835,-300.66,0.00041856,2]
[309775132,1704109890845,-313.25,0.00041856,2]
[309775133,1704109890855,-158.02,0.00041856,2]
[309775134,1704109890865,-150.0,0.00041856,2]
[309775135,1704109890874,-416.59,0.00041856,2]
[309775136,1704109890884,-520.11,0.00041856,2]
[309775137,1704109890894,-150.0,0.00041856,2]
[309775138,1704109890904,-313.25,0.00041856,2]
[309775139,1704109890914,-150.0,0.00041856,2]
[309775140,1704109890924,-520.11,0.00041856,2]
[309775141,1704109890934,-150.0,0.00041856,2]
[309775142,1704109890943,-416.59,0.00041856,2]
[309775143,1704109890953,-150.0,0.00041856,2]
[309775144,1704109890962,-313.25,0.00041856,2]
[309775145,1704109890973,-416.59,0.00041856,2]
[309775146,1704109890983,-150.0,0.00041856,2]
[309775147,1704109890993,-150.0,0.00041856,2]
[309775148,1704109891003,-313.25,0.00041856,2]
[309775149,1704109891013,-520.11,0.00041856,2]
[309775150,1704109891023,-416.59,0.00041856,2]
[309775151,1704109891032,-313.25,0.00041856,2]
[309775152,1704109891042,-150.0,0.00041856,2]
[309775153,1704109891052,-375.95,0.00041856,2]
[309775154,1704109891061,-150.0,0.00041856,2]
[309775155,1704109891071,-416.59,0.00041856,2]
[309775156,1704109891081,-150.0,0.00041856,2]
[309775157,1704109891091,-313.25,0.00041856,2]
[309775158,1704109891100,-150.0,0.00041856,2]
[309775159,1704109891110,-313.25,0.00041856,2]
[309775160,1704109891119,-150.0,0.00041856,2]
[309775161,1704109891128,-313.25,0.00041856,2]
[309775162,1704109891138,-479.78,0.00041856,2]
[309775163,1704109891147,-500.0,0.0004186,6]
[309775164,1704109891157,-500.0,0.00041863,2]
[309775165,1704109891167,-25827.07474541,0.00041868,21]
[309775166,1704109891176,-2042.0,0.00041873,5]
[309775167,1704109891186,-4952.598253,0.00041878,30]
[309775168,1704109891195,-1393.537639,0.00041878,30]
[309775169,1704109891205,-1700.316283,0.00041878,30]
[309775170,1704109891214,-304.415413,0.00041878,30]
[309775171,1704109891223,-309.830366,0.00041878,30]
[309775172,1704109891233,-2097.750221,0.00041878,30]
[309775173,1704109891243,-2407.580588,0.00041878,30]
[309775174,1704109891252,-2390.292475,0.00041878,30]
[309775175,1704109891262,-2407.580587,0.00041878,30]
[309775176,1704109891272,-1216.708069,0.00041878,30]
[309775177,1704109891282,-500.0,0.0004188,6]
[309775178,1704109891291,-2487685.47657298,0.00041897,7]
[309775179,1704109891301,-222.22222,0.00041898,8]
[309775180,1704109891311,-152.68,0.000419,7]
[309775181,1704109891321,-500.0,0.000419,6]
[309775182,1704109891331,-1293.9847346,0.000419,5]
[309775183,1704109891340,-1998.82,0.0004191,2]
[309775184,1704109891351,-329.84,0.00041917,2]
[309775185,1704109891360,-720.4,0.00041917,2]
[309775186,1704109891370,-566.28,0.00041917,2]
[309775187,1704109891380,-550.34,0.00041917,2]
[309775188,1704109891390,-764.33,0.00041917,2]
[309775189,1704109891400,-777.67536126,0.00041917,2]
[309775190,1704109891410,-500.0,0.00041917,2]
[309775191,1704109891421,-1110.13853252,0.00041917,2]
[309775192,1704109891431,-928.37,0.00041917,2]
[309775193,1704109891441,-2601.25,0.00041917,2]
[309775194,1704109891451,-533.17,0.00041917,2]
[309775195,1704109891461,-719.87,0.00041917,2]
[309775196,1704109891471,-813.47,0.00041917,2]
[309775197,1704109891481,-591.85,0.00041917,2]
[309775198,1704109891491,-743.28,0.00041917,2]
[309775199,1704109891501,-1337.05476339,0.00041917,2]
[309775200,1704109891512,-500.0,0.00041917,2]
[309775201,1704109891521,-1003.5993734,0.00041917,2]
[309775202,1704109891531,-1028.17,0.00041917,2]
[309775203,1704109891541,-2255.94789203,0.00041917,2]
[309775204,1704109891551,-1769.30098592,0.00041917,10]
[309775205,1704109891561,-1374.85,0.00041917,2]
[309775206,1704109891571,-504.79000263,0.00041917,2]
[309775207,1704109891581,-3035.8,0.00041917,5]
[309775208,1704109891592,-156.27370699,0.00041917,2]
[309775209,1704109891601,-3369.87717713,0.00041917,2]
[309775210,1704109891611,-3995.02513562,0.00041917,2]
[309775211,1704109891621,-680.49,0.00041917,2]
[309775212,1704109891631,-598.55296473,0.00041917,2]
[309775213,1704109891641,-520.91,0.00041917,2]
[309775214,1704109891652,-785.83,0.00041917,2]
[309775215,1704109891661,-500.52419169,0.00041917,2]
[309775216,1704109891671,-3723.5184611,0.00041917,5]
[309775217,1704109891681,-603.31,0.00041917,2]
[309775218,1704109891691,-4833.8478,0.00041917,2]
[309775219,1704109891701,-1308.62641017,0.00041917,2]
[309775220,1704109891710,-606.76,0.00041917,2]
[309775221,1704109891720,-669.13,0.00041917,2]
[309775222,1704109891730,-551.96,0.00041917,2]
[309775223,1704109891740,-500.0,0.0004192,6]
[309775224,1704109891750,-500.0,0.0004194,6]
[309775225,1704109891760,-500.0,0.0004196,6]
[309775226,1704109891769,-150.0,0.00041961,120]
[309775227,1704109891779,-150.0,0.0004197,120]
[309775228,1704109891789,-500.0,0.00041972,2]
[309775229,1704109891799,-500.0,0.0004198,6]
[309775230,1704109891808,-500.0,0.00041987,33]
[309775231,1704109891818,-13485.0,0.0004199,2]
[309775232,1704109891829,-222.22222,0.00041998,8]
[309775233,1704109891839,-100000.0,0.00042,12]
[309775234,1704109891849,-8631.29069304,0.00042,2]
[309775235,1704109891859,-100198.63936251,0.00042,2]
[309775236,1704109891868,-4342.15897995,0.00042,2]